Cogmind - Beta 15 @@@ ROGUE MODE // 2025.08.05 @ 17:18:00 Player: Longball Result: Destroyed by Y-54 Guardian with Flak Gun Performance ------------- Evolutions (3) 1500 Regions Visited (6) 1200 Robots Destroyed (71) 355 Value Destroyed (2224) 2224 Prototype IDs (10) 200 Alien Tech Used (0) 0 Bonus (830) 830 TOTAL SCORE: 6309 Bonus ------- High Alert Combat Kills 95 Follower Combat Kills 35 Entered Garrisons 200 Used RIF Installer 500 Cogmind --------- Core Integrity 0/700 Matter 256/300 Energy 99/100 System Corruption 7% Temperature Cool (6) Movement Rolling (80) Location -7/Factory Parts ------- > --- POWER (1) -------- (None) > --- PROPULSION (6) --- Armored Treads Wheel Cesium-ion Thruster > --- UTILITY (4) ------ Terrain Scan Processor > --- WEAPON (2) ------- Spear > --- INVENTORY (5) ---- Medium Storage Unit Compact Battery (200) Weight Redist. System Improved Medium Armor Plating EM Pulse Cannon Peak State ------------ > --- POWER ------------ Light Nuclear Core > --- PROPULSION ------- Armored Treads Armored Huge Wheel Improved Airjet Improved Airjet Improved Airjet > --- UTILITY ---------- Visual Processing Unit Improved Terrain Scanner Terrain Scan Processor Hacking Suite > --- WEAPON ----------- Flak Gun Precision Assault Rifle > --- INVENTORY -------- Light Nuclear Core Wheel Weight Redist. System Precision Assault Rifle Missile Launcher [Rating: 49] Favorites ----------- Power Light Nuclear Core Engine Ion Engine Power Core Light Nuclear Core Propulsion Aluminum Leg Treads Armored Treads Leg Aluminum Leg Wheel Armored Huge Wheel Hover Unit Improved Airjet Flight Unit Cesium-ion Thruster Utility Terrain Scan Processor Device Improved Terrain Scanner Storage Medium Matter Pod Processor Terrain Scan Processor Hackware Hacking Suite Weapon Improved EM Shotgun Energy Gun Improved EM Shotgun Energy Cannon Cooled Particle Cannon Ballistic Gun Precision Assault Rifle Launcher Missile Launcher Piercing Weapon Spear Build | -11 -10 -9 -8 -7 -7 -7 ------- Run | Yrd Mat Mat Mat Fac Gar Fac Slots Evolved 6 | . . 2 2 2 . . Power . | . . . . . . . Propulsion 4 | . . 1 2 1 . . Utility 2 | . . 1 . 1 . . Weapon . | . . . . . . . Parts Attached 72 | 7 1 12 9 10 28 5 Power 6 | 1 . 1 . 1 3 . Engine 2 | 1 . . . 1 . . Core 4 | . . 1 . . 3 . Reactor . | . . . . . . . Propulsion 33 | 2 . 5 1 5 17 3 Treads 8 | . . 2 1 . 4 1 Leg 15 | 2 . . . . 13 . Wheel 2 | . . . . 1 . 1 Hover 4 | . . . . 4 . . Flight 4 | . . 3 . . . 1 Utility 12 | 2 1 2 4 1 2 . Device 6 | 1 . 1 2 . 2 . Storage 2 | 1 . 1 . . . . Processor 3 | . 1 . 2 . . . Hackware 1 | . . . . 1 . . Protection . | . . . . . . . Artifact . | . . . . . . . Weapon 21 | 2 . 4 4 3 6 2 Energy Gun 12 | 2 . 3 3 . 4 . Energy Cannon 1 | . . . . 1 . . Ballistic Gun 5 | . . . . 2 2 1 Ballistic Cannon . | . . . . . . . Launcher 2 | . . 1 1 . . . Special Weapon . | . . . . . . . Impact Weapon . | . . . . . . . Slashing Weapon . | . . . . . . . Piercing Weapon 1 | . . . . . . 1 Special Melee Weapon . | . . . . . . . Unidentified Prototypes 6 | . . 1 1 4 . . Corrupted Parts 3 | 1 . 1 . . 1 . System Corruption 8 | 3 . 1 . . 4 . Parts Lost 37 | . . 6 . 1 30 . Power 5 | . . 1 . . 4 . Propulsion 17 | . . 1 . 1 15 . Utility 6 | . . 1 . . 5 . Weapon 9 | . . 3 . . 6 . Highest Loss Streak 12 | . . 2 . 1 12 . To Critical Strikes . | . . . . . . . Average Backups 4 | 4 6 4 5 4 4 4 Power . | . 1 1 1 1 . . Propulsion 1 | 2 3 2 1 1 1 . Utility . | . 1 . . . 1 2 Weapon 1 | . 1 1 2 1 . 1 Tool/Special . | . . . . . . . Unused Backups 14 | . 4 1 2 2 . 5 Power 1 | . . 1 . . . . Propulsion 3 | . 2 . 1 . . . Utility 6 | . 1 . . 1 . 4 Weapon 4 | . 1 . 1 1 . 1 Tool/Special . | . . . . . . . Average Slot Usage (%) 79 | . 98 79 86 84 81 21 Engine 2 | . 14 9 . . . . Core 4 | . . 1 8 6 5 . Treads 5 | . . 4 8 7 5 6 Leg 12 | . 28 17 . . 20 . Wheel 1 | . . . . . 3 . Hover 2 | . . . . 2 5 . Flight 8 | . . 2 26 20 . 3 Device 7 | . 12 10 11 7 6 . Storage 2 | . 9 8 4 . . . Processor 11 | . 4 11 10 15 14 7 Hackware 1 | . . . . 7 2 . Energy Gun 10 | . 28 14 17 5 4 . Ballistic Gun 4 | . . . . 9 8 . Peak Build Rating 49 | 9 10 25 30 49 49 14 Average Rating 23 | 5 9 11 27 34 30 8 On Entrance 17 | . 9 10 25 28 49 3 Naked Turns . | . . . . . . . Heaviest Build 19 | 15 15 14 14 19 14 2 Greatest Support 70 | 20 20 40 15 27 70 20 Greatest Overweight (x) 3 | . . 1 . 1 3 . Average Overweight (x) . | . . . . . . . Largest Inventory Capacity 8 | 8 8 5 5 5 5 5 Average Capacity 5 | 7 6 5 5 5 5 5 Most Carried 8 | 7 8 5 5 5 5 5 Average Carried 4 | 4 6 4 4 4 4 4 Final Capacity 8 | 8 5 5 5 5 5 5 Final Carried 7 | 7 5 5 5 5 4 5 Class Distribution -------------------- 51% | Mutant 28% | Scavenger-Mutant 18% | Scout Dominant Class ---------------- Mutant | -10/Materials Mutant | -9/Materials Mutant | -8/Materials Scout | -7/Factory Scavenger-Mutant | -7/Garrison Mutant | -7/Factory Resources | -11 -10 -9 -8 -7 -7 -7 ----------- Run | Yrd Mat Mat Mat Fac Gar Fac Matter Collected 1812 | 270 26 259 123 175 908 51 Remotely . | . . . . . . . Salvage Created 2408 | 160 87 617 479 148 917 . Parts 157 | 12 12 45 30 10 48 . Haulers Intercepted 1 | . . 1 . . . . Recyclers Shooed . | . . . . . . . Parts Field Recycled . | . . . . . . . Retrieved Matter . | . . . . . . . Parts Self-Destructed . | . . . . . . . Prevented . | . . . . . . . Kills | -11 -10 -9 -8 -7 -7 -7 ------- Run | Yrd Mat Mat Mat Fac Gar Fac Combat Hostiles Destroyed 57 | . 3 15 11 3 25 . Guns 39 | . 3 5 8 3 20 . AOE 17 | . . 9 3 . 5 . Classes Destroyed 10 | 2 3 3 . 1 1 . Builder 2 | . 1 . 1 . . . Tunneler 4 | 3 . 1 . . . . Hauler 1 | . . 1 . . . . Recycler 3 | 1 . 2 . . . . Operator 1 | . . . . 1 . . Watcher 3 | . 1 1 . . 1 . Swarmer 19 | . 3 8 4 . 4 . Grunt 28 | . . 4 5 3 16 . Sentry 9 | . . 3 2 . 4 . Specialist 1 | . . . . . 1 . Best Kill Streak 10 | 3 3 10 5 2 8 . Combat Bots Only 8 | . 3 8 4 2 8 . Max Kills in Single Turn 6 | 1 1 6 2 1 2 . Gunslinging 1 | . . . . . 1 . Exploded 4 | . . 4 2 . 2 . Melee . | . . . . . . . Uniques/NPCs Destroyed . | . . . . . . . Combat | -11 -10 -9 -8 -7 -7 -7 -------- Run | Yrd Mat Mat Mat Fac Gar Fac Hostile Shots Fired 570 | . 18 63 28 6 446 9 Missed 216 | . 5 24 13 1 167 6 Hits 354 | . 13 39 15 5 279 3 Melee 2 | . . 2 . . . . Projectile 352 | . 13 37 15 5 279 3 Critical Strikes 3 | . . . . 1 2 . Part Disruptions 1 | . . . . 1 . . Damage Taken 4447 | . 110 480 231 98 3512 16 Core 769 | . 14 54 . 40 655 6 Absorbed by Shields . | . . . . . . . Regen/Repaired (Parts) 108 | . 15 . 93 . . . Core Remaining (%) 95 | 100 94 86 100 . . . Volleys Fired 175 | 6 8 34 22 9 96 . Largest 2 | 2 2 2 2 2 2 . Hottest 130 | 80 80 90 110 110 130 . Shots Fired 301 | 12 16 50 43 18 162 . Gun 286 | 12 16 47 42 18 151 . Cannon . | . . . . . . . Launcher 15 | . . 3 1 . 11 . Special . | . . . . . . . Kinetic 128 | . . . . 14 114 . Thermal 25 | . . . 1 2 22 . Explosive 15 | . . 3 1 . 11 . Electromagnetic 133 | 12 16 47 41 2 15 . Robot Hit Streak 13 | 3 4 12 8 8 13 . Robot Miss Streak 8 | 2 3 4 3 6 8 . Penetration Max . | . . . . . . . Secondary Targets 5 | . 2 . 1 . 2 . Max Gunslinging Chain 1 | . 1 . 1 . 1 . Shots Hit Robots 236 | 6 7 41 38 15 129 . Core Hits 177 | 4 5 30 22 16 100 . Critical Kills 1 | . . . . . 1 . Critical Parts Destroyed . | . . . . . . . Critical Strikes 1 | . . . . . 1 . Destroy 1 | . . . . . 1 . Melee Attacks . | . . . . . . . Impact . | . . . . . . . Slashing . | . . . . . . . Piercing . | . . . . . . . Sneak Attacks . | . . . . . . . Combat Hostiles . | . . . . . . . Follow-up Attacks . | . . . . . . . Damage Inflicted 5784 | 81 100 1238 740 320 3305 . Guns 3994 | 81 100 563 564 298 2388 . Cannons . | . . . . . . . Explosions 1786 | . . 671 176 22 917 . Melee . | . . . . . . . Ramming 4 | . . 4 . . . . Kinetic 2287 | . . . . 273 2014 . Thermal 680 | . . 179 176 34 291 . Explosive 1409 | . . 492 . . 917 . Electromagnetic 1404 | 81 100 563 564 13 83 . Impact . | . . . . . . . Slashing . | . . . . . . . Piercing . | . . . . . . . Highest Corruption 7 | 3 3 2 2 3 7 7 Average Corruption 3 | 3 3 1 2 3 4 7 Corruption Purged . | . . . . . . . Corruption Blocked . | . . . . . . . Effects 57 | 1 8 8 5 . 27 8 Message Errors 15 | 1 2 2 2 . 6 2 Matter Fused 16 | . 1 3 . . 8 4 Heat Flow Errors 6 | . 2 1 . . 2 1 Energy Discharges 5 | . 2 1 1 . 1 . Data Loss (minor) 7 | . . . 2 . 4 1 Data Loss (major) 2 | . 1 . . . 1 . Misfires 1 | . . . . . 1 . Weapon Failures 5 | . . 1 . . 4 . Overload Shots . | . . . . . . . Overflow Damage 114 | . . 34 34 . 46 . Projectiles . | . . . . . . . Explosions 114 | . . 34 34 . 46 . Melee . | . . . . . . . Knockbacks . | . . . . . . . Impact . | . . . . . . . Kinetic . | . . . . . . . Secondary . | . . . . . . . Self-Inflicted Damage 84 | . . . 40 18 26 . Shots 3 | . . . 1 1 1 . Rammed . | . . . . . . . Targets Rammed 1 | . . 1 . . . . Kicked 1 | . . 1 . . . . Crushed . | . . . . . . . Highest Temperature 316 | 72 259 143 201 75 316 252 Average Temperature 62 | 30 74 44 73 24 74 134 Received Heat Transfer 1359 | . . 135 81 63 1074 6 Siege Activations . | . . . . . . . Martial Activations . | . . . . . . . Shielding Activations . | . . . . . . . Robots Disrupted . | . . . . . . . Combat Hostiles . | . . . . . . . Robots Corrupted 1 | . . 1 . . . . Combat Hostiles 1 | . . 1 . . . . Parts Fried 7 | . . 5 2 . . . Impact Corruptions . | . . . . . . . Robots Melted . | . . . . . . . Combat Hostiles . | . . . . . . . Parts Melted . | . . . . . . . Heat Transferred 946 | . . 200 200 65 481 . Parts Sabotaged . | . . . . . . . Parts Stolen . | . . . . . . . Parts Stripped . | . . . . . . . Power Chain Reactions 6 | . . 3 2 1 . . Alert | -11 -10 -9 -8 -7 -7 -7 ------- Run | Yrd Mat Mat Mat Fac Gar Fac Maximum Alert Level 2 | . . 1 1 . 2 1 Low Security (%) 52 | 100 100 56 81 100 3 36 Level 1 22 | . . 43 18 . 23 63 Level 2 25 | . . . . . 72 . Level 3 . | . . . . . . . Level 4 . | . . . . . . . Level 5 . | . . . . . . . High Security . | . . . . . . . Max Security . | . . . . . . . Peak Influence 613 | 10 70 340 258 56 613 289 Initial 289 | . . . 143 3 32 289 Average 230 | 1 18 122 163 19 457 222 Influence Increases 2069 | 20 97 516 349 166 921 . Destroy 0b10 Robot/C 1160 | . 60 300 220 60 520 . Destroy 0b10 Robot/NC 70 | 20 10 25 5 5 5 . Destroy Leader 166 | . 12 74 50 10 20 . Allied During Kill 4 | . . . . . 4 . Successful Hack 62 | . 15 5 12 30 . . Disable Machine 105 | . . 30 30 45 . . Anti-Garrison Action 100 | . . . . . 100 . Destroy Structure 147 | . . 22 17 1 107 . Partial Spotted 60 | . . 30 15 . 15 . Lose Combat Pursuer 195 | . . 30 . 15 150 . Influence Decreases 1920 | 20 97 176 681 128 414 404 Entered New Map 480 | . . . 197 5 14 264 Time Decay 840 | 20 97 136 334 113 . 140 Lost Part 350 | . . 40 . 10 300 . Lost Ally 100 | . . . . . 100 . Purge Threat 150 | . . . 150 . . . Squads Dispatched 5 | . 1 2 1 1 . . Investigation 1 | . . . 1 . . . Extermination . | . . . . . . . Reinforcement 4 | . 1 2 . 1 . . Assault . | . . . . . . . Garrison . | . . . . . . . Intercept . | . . . . . . . Searches Triggered . | . . . . . . . Construction Impeded 1 | . . 1 . . . . Haulers Reinforced . | . . . . . . . Active Scanning Responses . | . . . . . . . Cargo Convoy Interrupts . | . . . . . . . Stealth | -11 -10 -9 -8 -7 -7 -7 --------- Run | Yrd Mat Mat Mat Fac Gar Fac Distress Signals 1 | . . 1 . . . . Communications Jammed . | . . . . . . . Distress Signals . | . . . . . . . Times Spotted 85 | . 6 24 14 7 33 1 Peak Tracking Total 11 | . 3 11 5 3 9 . Tactical Retreats 9 | . . 2 . 1 6 . Traps | -11 -10 -9 -8 -7 -7 -7 ------- Run | Yrd Mat Mat Mat Fac Gar Fac Traps Triggered 6 | . . . 2 . 4 . Indirectly . | . . . . . . . Trap Hack Attempts . | . . . . . . . Triggered . | . . . . . . . Disarmed . | . . . . . . . Reprogrammed . | . . . . . . . Reused . | . . . . . . . Traps Extracted . | . . . . . . . Installed . | . . . . . . . Triggered . | . . . . . . . Machines | -11 -10 -9 -8 -7 -7 -7 ---------- Run | Yrd Mat Mat Mat Fac Gar Fac Machines Disabled 7 | . . 2 2 3 . . Max in Single Turn 3 | . . 1 2 3 . . Machines Repaired . | . . . . . . . Machines Dismantled . | . . . . . . . Machines Sabotaged . | . . . . . . . Overloaded Fab Kills . | . . . . . . . Hacking | -11 -10 -9 -8 -7 -7 -7 --------- Run | Yrd Mat Mat Mat Fac Gar Fac Machines Accessed 16 | . 2 1 4 6 1 2 Terminals 10 | . 1 1 2 5 1 . Fabricators 2 | . . . . . . 2 Repair Stations 3 | . 1 . 2 . . . Recycling Units . | . . . . . . . Scanalyzers . | . . . . . . . Garrison Access 1 | . . . . 1 . . Total Hacks 51 | . 10 2 20 15 1 3 Successful 30 | . 6 1 14 9 . . Failed 21 | . 4 1 6 6 1 3 Catastrophic 3 | . . . . 1 1 1 Database Lockouts . | . . . . . . . Manual 13 | . 4 2 3 4 . . Terminals 32 | . 7 2 8 14 1 . Fabricators 3 | . . . . . . 3 Repair Stations 15 | . 3 . 12 . . . Recycling Units . | . . . . . . . Scanalyzers . | . . . . . . . Garrison Access 1 | . . . . 1 . . Terminal Hacks 11 | . 3 . 2 6 . . Record 1 | . . . . 1 . . Prototype ID Bank 2 | . . . 1 1 . . Branch Access Points 2 | . 1 . . 1 . . Alert Level 2 | . . . . 2 . . Unreport Threat 1 | . . . 1 . . . Locate Traps 1 | . 1 . . . . . Zone Layout 2 | . 1 . . 1 . . Fabricator Hacks . | . . . . . . . Repair Station Hacks 11 | . 2 . 9 . . . Scan Component 6 | . 1 . 5 . . . Repair 5 | . 1 . 4 . . . Recycling Unit Hacks . | . . . . . . . Scanalyzer . | . . . . . . . Garrison Access Hacks 1 | . . . . 1 . . Unlock Access 1 | . . . . 1 . . Unauthorized Hacks 7 | . 1 1 3 2 . . Terminals 7 | . 1 1 3 2 . . Track 1 | . . . 1 . . . Botnet 5 | . 1 1 1 2 . . Operators 1 | . . . 1 . . . Fabricators . | . . . . . . . Repair Stations . | . . . . . . . Recycling Units . | . . . . . . . Scanalyzers . | . . . . . . . Garrison Access . | . . . . . . . Data Cores Recovered . | . . . . . . . Used . | . . . . . . . Hacking Detections 15 | . 2 1 4 5 1 2 Full Trace Events . | . . . . . . . Feedback Events . | . . . . . . . Feedback Blocked . | . . . . . . . Robot Schematics Acquired . | . . . . . . . Robots Built . | . . . . . . . Authchips . | . . . . . . . Time . | . . . . . . . Total Robot Build Rating . | . . . . . . . Part Schematics Acquired . | . . . . . . . Parts Built . | . . . . . . . Authchips . | . . . . . . . Time . | . . . . . . . Total Part Build Rating . | . . . . . . . Parts Repaired 5 | . 1 . 4 . . . Time 203 | . 38 . 165 . . . Parts Recycled . | . . . . . . . Recycled Matter . | . . . . . . . Retrieved Matter . | . . . . . . . Retrieved Components . | . . . . . . . Parts Scanalyzed . | . . . . . . . Part Schematics Acquired . | . . . . . . . Parts Damaged . | . . . . . . . Bothacking | -11 -10 -9 -8 -7 -7 -7 ------------ Run | Yrd Mat Mat Mat Fac Gar Fac Used RIF Installer 1 | . . . . . 1 . Robots Hacked . | . . . . . . . Non-combat . | . . . . . . . Combat . | . . . . . . . Robot Hacks Applied . | . . . . . . . Relay Couplers Released . | . . . . . . . Fabnet Peak Effective % . | . . . . . . . Robots Rewired 8 | . . . . . 8 . Allies Hacked . | . . . . . . . Hacks Repelled . | . . . . . . . Allies | -11 -10 -9 -8 -7 -7 -7 -------- Run | Yrd Mat Mat Mat Fac Gar Fac Total Allies 8 | . . . . . 8 . Largest Group 3 | . . . . . 3 . Highest-Rated Group 63 | . . . . . 63 . Highest-Rated Ally 21 | . . . . . 21 . Total Orders . | . . . . . . . Ally Attacks 29 | . . . . . 29 . Total Damage 663 | . . . . . 663 . Kills 1 | . . . . . 1 . Allies Corrupted . | . . . . . . . Allies Melted 1 | . . . . . 1 . Intel | -11 -10 -9 -8 -7 -7 -7 ------- Run | Yrd Mat Mat Mat Fac Gar Fac Active Infowar (turns) 2994 | . 245 416 755 373 1205 . Optics 1808 | . . . 230 373 1205 . Terrain 1853 | . 245 416 755 373 64 . Robot Analysis Total . | . . . . . . . Derelict Logs Recovered . | . . . . . . . Drone Launches . | . . . . . . . Drone Recoveries . | . . . . . . . Exploration | -11 -10 -9 -8 -7 -7 -7 ------------- Run | Yrd Mat Mat Mat Fac Gar Fac Turns Passed 3588 | 122 349 458 755 373 1247 284 Spaces Moved 2806 | 73 220 250 663 437 823 340 Core 331 | 10 . . . . 109 212 Treads 117 | . . 38 . . 4 75 Legs 928 | 63 220 177 . . 468 . Wheels 160 | . . . . . 122 38 Hover 165 | . . . . 45 120 . Flight 1105 | . . 35 663 392 . 15 Fastest Speed 29 | 50 120 29 29 49 50 50 Average Speed 80 | 110 120 113 47 51 100 80 Slowest Speed 200 | 120 120 160 49 132 200 170 Overloaded Moves . | . . . . . . . Propulsion Burnouts . | . . . . . . . Robots Hopped . | . . . . . . . Potential Cave-ins . | . . . . . . . Cave-ins Triggered . | . . . . . . . Exploration Rate (%) 25 | 4 33 29 46 14 45 9 Regions Visited 6 Branch Regions . Pre-discovered Areas . | . . . . . . . Known Exits Taken 1 | . . . . 1 . . Unknown Exits Taken 4 | 1 1 1 1 . . . Scrap Searched . | . . . . . . . Spaces Dug 13 | . . . 13 . . . Terrain Destroyed 128 | . . 18 19 . 91 . Melee . | . . . . . . . Projectile 2 | . . . . . 2 . AOE 126 | . . 18 19 . 89 . Terrain Rammed . | . . . . . . . Walls Destroyed . | . . . . . . . Machines Disabled . | . . . . . . . Actions | -11 -10 -9 -8 -7 -7 -7 --------- Run | Yrd Mat Mat Mat Fac Gar Fac Total 3800 | 99 290 370 1059 564 1067 351 Wait 614 | 6 54 64 346 93 50 1 Move 2799 | 72 219 249 662 436 821 340 Hop . | . . . . . . . Pick Up 26 | 8 3 4 2 3 3 3 Fast Attach 69 | 6 1 9 13 11 25 4 Attach 13 | 1 . 3 . 1 7 1 Detach 7 | . . 1 1 . 5 . Swap 8 | . 1 . 3 . 4 . Drop 44 | . 4 5 10 11 12 2 Fire 175 | 6 8 34 22 9 96 . Melee . | . . . . . . . Ram . | . . . . . . . Kick 1 | . . 1 . . . . Crush . | . . . . . . . Escape Stasis . | . . . . . . . Rewire 44 | . . . . . 44 . Trap . | . . . . . . . Miscellaneous . | . . . . . . . Route ------- -11/Scrapyard -10/Materials (discovered 3 exits: *Mat / *Min x2) -9/Materials -8/Materials -7/Factory (discovered 3 exits: *Low x2 / Gar) -7/Garrison -7/Factory History --------- Turn | Location | Event 7 | -11/Scrapyard | Discovered new exit (range 14) 123 | -11/Scrapyard | Entered Materials 152 | -10/Materials | Discovered new exit (range 16) 227 | -10/Materials | Repaired Imp. Terrain Scanner 294 | -10/Materials | Identified exit to Mines 305 | -10/Materials | Build established: Mutant 415 | -10/Materials | Discovered new exit (range 9) 472 | -10/Materials | Entered another Materials area 472 | -9/Materials | Evolved 2 slots: Propulsion x1, Utility x1 753 | -9/Materials | Destroyed 8 combat bots 926 | -9/Materials | Discovered new exit (range 15) 930 | -9/Materials | Entered another Materials area 930 | -8/Materials | Evolved 2 slots: Propulsion x2 1144 | -8/Materials | Repaired Cesium-ion Thruster 1184 | -8/Materials | Repaired Cesium-ion Thruster 1223 | -8/Materials | Repaired Lgt. Nuclear Core 1390 | -8/Materials | Repaired Imp. EM Shotgun 1649 | -8/Materials | Discovered new exit (range 17) 1685 | -8/Materials | Entered Factory 1685 | -7/Factory | Evolved 2 slots: Propulsion x1, Utility x1 1738 | -7/Factory | Discovered new exit (range 17) 1744 | -7/Factory | Build established: Scout 1767 | -7/Factory | Identified exit to Lower Caves 2057 | -7/Factory | Identified exit to Garrison 2058 | -7/Factory | Entered Garrison 2094 | -7/Garrison | Triggered checkpoint 2165 | -7/Garrison | Destroyed 8 combat bots 2218 | -7/Garrison | Triggered checkpoint 2218 | -7/Garrison | Triggered checkpoint 2218 | -7/Garrison | Triggered checkpoint 2277 | -7/Garrison | Lost 4 parts (1p2n1w) 2373 | -7/Garrison | Lost 5 allies 2496 | -7/Garrison | Discovered new exit (range 12) 2610 | -7/Garrison | Core integrity fell below 50% 2613 | -7/Garrison | Lost 12 parts (1p6n2u3w) 2811 | -7/Garrison | Installed Relay Interface Framework 2824 | -7/Garrison | Triggered checkpoint 2900 | -7/Garrison | Build established: Scavenger-Mutant 3014 | -7/Garrison | Triggered checkpoint 3198 | -7/Garrison | Spotted B-75 Beast 3264 | -7/Garrison | Core integrity fell below 20% 3297 | -7/Garrison | Lost 12 parts (2p6n2u2w) 3305 | -7/Garrison | Entered Factory 3578 | -7/Factory | Build established: Mutant 3589 | -7/Factory | Destroyed by Y-54 Guardian with Flak Gun Last Messages --------------- 03432_ Acquired EM Pulse Cannon. 03441_ Acquired Cesium-ion Thruster. 03454_ E2KIXK4JK MPL R2OOOJEGDA8FSV78SS:X3 03465_ Acquired 51 matter. 03466_ Dropped Flak Gun. 03470_ Acquired Imp. Medium Armor Plating. 03471_ System corrupted: Matter fused (-8). 03479_ K-01 Serf cleans the Nuclear Reactor. 03482_ Detecting nearby Garrison Access. 03483_ Connecting with Fabricator... 03488_ Acquired Unknown Ballistic Gun. 03488_ Identified Hvy. Assault Rifle. 03490_ Dropped Hvy. Assault Rifle. 03502_ UDNBFG4#TD/XDERY RA,EPU4UY#PY:QHXK1/5 03504_ Connecting with Fabricator... 03510_ Acquired Spear. 03521_ System corrupted: Component data lost. 03539_ System corrupted: Matter fused (-6). 03557_ Connecting with Terminal... 03560_ Acquired Med. Storage Unit. Map ----- +----------------------------------------------------+ | | | | | | | | | | | | | | | | | | | | | | | | | | | | | #####????????????????????????????????????????????? | | #????????????????????????????????????????????? | | #????????????????""?????""???????????????????? | | #???????????????""" """ """??????????????????? | | """ #?????????????? """ """ """ ?????????????????? | | """ #?????????????# #????????????????? | | """ #?????????????# """ """ """ #????????????????? | | #?????????????# """ """ """ #????????????????? | | """ #?????????????# """ """ """ #????????????????? | | """ #?????????????# #????????????????? | | """ #????????????## #????????????????? | | #????????????#Y @ !#????????????????? | | ###############??########/####### #??????????????? | | + !/ #???????# +??????????????? | | # ! #???????# #######??????????????? | | # ! #???????# ##############???????? | | # ######### # #???????? | | # + # #???????? | | # # # #???????? | | #####+######### #! #???????? | | # #???????? | | # #???????? | | + #???????? | | """ # #???????? | | """ # #???????? | | """ ############# # #???????? | | #??# """"" # # #???????? | | """ #??# ""T"" # # !#???????? | | """ ##+#### # ##############???????? | | """ # # # #????????????????????? | | # " " # + #????????????????????? | | """ # " " # """ # #????????????????????? | | """ # " " # """ # #????????????????????? | | """ # " " # """ # ##########???????????? | | # " " # ! # #???????????? | | """ + " " ########## #???????????? | +----------------------------------------------------+ Best States ------------- Heat Dissipation 48 Energy Generation 18 Energy Capacity 310 Matter Stores 400 Matter Capacity 400 Sight Range 18 Terrain Scan Range 16 Terrain Scan Density 85 Evasion (%) 64 Recoil Reduction 4 Offensive Hacking 10 Item Schematics ----------------- None Robot Schematics ------------------ None Fabricated ------------ Nothing Repaired ---------- Imp. Terrain Scanner | 31% | -10/Materials Cesium-ion Thruster | 40% | -8/Materials Cesium-ion Thruster | 56% | -8/Materials Lgt. Nuclear Core | 60% | -8/Materials Imp. EM Shotgun | 32% | -8/Materials Alien Tech Used ----------------- None Achievements -------------- None Challenges ------------ None Game ------ Seed BoltPhasingLeg Manual? 0 Play Time 00:48:32 Cumulative 252.5 hours Start 2025.08.04 @ 16:21:12 End 2025.08.05 @ 17:18:00 Sessions 5 Manual Loads 0 Difficulty Rogue Special Mode None Game No. 203 Rogue 203 Adventurer 0 Explorer 0 Win Type - Total 1 Types 1/0/0/0/0/0/0/0/0/0 Lore% 51 Gallery% 58 Achievement% 46 Wizard Run 0 Options --------- Layout 0 ASCII 0 Keyboard 1 Movement Numpad Keybinds 0 Fullscreen 1 Font 12/Terminus Map View 83x54 Zoom Use 0% Tactical HUD 1 Map Filters NONE Filters NONE Steam 1 RUN: 2039da46-def8-4c10-92ec-2aa88b20988d